bitfinex/quotes_ETHUSD_20250602
["timestamp","ask_amount","ask_price","bid_price","bid_amount"]
[1748851030767,3.16288306,2506.3,2506.1,0.02]
[1748851030962,0.7689,2506.3,2506.1,0.02]
[1748851032595,5.02835427,2506.4,2506.1,2.41415651]
[1748851033295,5.02835427,2506.4,2506.1,0.02]
[1748851033495,0.58374543,2506.3,2506.1,0.02]
[1748851034700,0.58374543,2506.3,2506.1,2.41415265]
[1748851034864,5.02835427,2506.4,2506.1,2.41415265]
[1748851035288,8.0,2506.6,2506.3,2.39396185]
[1748851035620,8.0,2506.6,2506.2,2.39404956]
[1748851036080,0.8283,2506.7,2506.4,2.39382648]
[1748851036415,0.58886784,2506.9,2506.4,2.3938011]
[1748851036416,8.0,2506.8,2506.4,2.3938011]
[1748851036709,9.87584411,2506.8,2506.4,2.3938011]
[1748851038298,3.5367234,2506.7,2506.1,6.49113685]
[1748851038604,3.49545625,2506.5,2506.1,0.02]
[1748851039587,3.49545625,2506.5,2506.2,2.39399709]
[1748851040590,4.15980098,2506.5,2506.1,0.02]
[1748851040803,3.49545625,2506.3,2506.1,0.02]
[1748851041397,4.15980098,2506.5,2506.1,2.41414583]
[1748851041912,4.15980098,2506.5,2506.1,0.02]
[1748851042090,3.49545625,2506.3,2506.1,0.02]
[1748851042285,3.91143635,2506.3,2506.1,0.02]
[1748851043014,3.49545625,2506.3,2506.1,2.41413548]
[1748851043380,3.49545625,2506.3,2506.1,0.02]
[1748851046429,3.49545625,2506.3,2506.1,2.41414873]
[1748851047013,3.49545625,2506.3,2506.1,0.02]
[1748851049628,0.8243,2506.2,2506.1,0.02]
[1748851049804,1.25627563,2506.2,2506.1,0.02]
[1748851055943,0.43197563,2506.2,2506.1,0.02]
[1748851056099,8.8006,2506.4,2506.1,0.02]
[1748851058535,8.8006,2506.4,2506.1,2.41415002]
[1748851059051,8.8006,2506.4,2506.1,0.02]
[1748851059945,8.0,2506.4,2506.1,0.02]
[1748851060901,6.55358315,2506.5,2506.1,2.41415096]
[1748851060902,8.66434473,2506.5,2506.1,2.41415096]
[1748851061401,1.22409973,2506.4,2506.1,0.02]
[1748851062648,1.22409973,2506.4,2506.1,2.41414737]
[1748851064260,1.22409973,2506.4,2506.1,0.02]
[1748851065170,1.22409973,2506.4,2506.1,2.41415343]
[1748851066671,1.22409973,2506.4,2506.1,0.02]
[1748851067161,1.22409973,2506.4,2506.1,2.41414192]
[1748851067672,2.63494411,2506.8,2506.1,0.8106]
[1748851067959,0.55,2507.4,2506.1,0.8106]
[1748851067960,0.7759,2507.0,2506.7,2.39355674]
[1748851068127,8.7759,2507.0,2506.5,2.3937055]
[1748851068325,9.95584825,2507.0,2506.5,2.3937055]
[1748851068555,3.49545625,2506.9,2506.5,2.3937055]
[1748851068765,3.49545625,2506.9,2506.2,0.8201]
[1748851069263,6.16681049,2509.2,2506.2,0.8201]
[1748851069264,0.7827,2507.4,2506.9,2.39332093]
[1748851069464,6.97383612,2507.4,2506.9,2.39332093]
[1748851069961,4.58090315,2507.4,2506.9,2.39332093]
[1748851070127,4.58090315,2507.4,2506.8,3.21006204]
[1748851070325,3.49545625,2507.2,2506.8,3.21006204]
[1748851070524,3.95354657,2507.2,2506.8,3.21006204]
[1748851071334,3.95354657,2507.2,2506.9,2.39338041]
[1748851071860,3.95354657,2507.2,2507.0,2.39326486]
[1748851072064,8.65590315,2507.4,2506.9,2.39334993]
[1748851072366,3.49545625,2507.2,2506.8,3.21008836]
[1748851072560,3.49545625,2507.2,2507.0,2.393271]
[1748851073130,3.49545625,2507.4,2506.8,0.8166]
[1748851073330,3.49545625,2507.4,2507.0,2.39320764]
[1748851073625,5.47770755,2507.4,2507.0,2.39320764]
[1748851074369,3.49545625,2507.2,2506.8,3.21005006]
[1748851074564,3.49545625,2507.2,2506.9,2.39337232]
[1748851074863,3.49545625,2507.2,2506.8,3.21004428]
[1748851075768,3.49545625,2507.2,2506.9,2.3933888]
[1748851077366,3.49545625,2507.4,2507.0,2.39328994]
[1748851077539,3.49545625,2507.2,2507.0,2.39328994]
[1748851078886,3.49545625,2507.2,2506.9,2.39338863]
[1748851079368,2.98150614,2507.4,2506.9,2.39338863]
[1748851079571,3.49545625,2507.3,2506.9,2.39338863]
[1748851081074,3.49545625,2507.1,2506.8,0.8166]
[1748851081388,3.49545625,2507.1,2506.7,2.39357411]
[1748851081389,3.49545625,2506.9,2506.7,2.39357411]
[1748851081530,3.49545625,2506.9,2506.6,3.21874872]
[1748851082264,3.49545625,2506.7,2506.4,7.14384376]
[1748851082428,3.49545625,2506.7,2506.4,2.39384376]
[1748851082962,3.49545625,2506.7,2506.6,2.39368068]
[1748851083161,3.49545625,2506.7,2506.4,2.39383921]
[1748851083331,4.32805625,2506.9,2506.5,2.39368139]
[1748851083530,4.32805625,2506.9,2506.6,2.39367981]
[1748851083745,4.32805625,2506.9,2506.5,2.39375021]
[1748851084155,8.38105625,2507.2,2506.8,2.39342706]
[1748851084471,4.59362739,2507.2,2506.8,2.39348626]
[1748851084630,3.49545625,2507.2,2507.0,2.39329416]
[1748851085030,3.49545625,2507.2,2506.9,2.39334708]
[1748851086283,3.49545625,2507.2,2507.0,2.393284]
[1748851086770,3.49545625,2507.2,2506.9,2.39339423]
[1748851086931,3.49545625,2507.2,2506.9,2.39333401]
[1748851088078,3.49545625,2507.2,2507.0,2.39327132]
[1748851088295,4.89564503,2507.4,2506.9,0.7838]
[1748851088785,4.89564503,2507.4,2506.9,3.17714542]
[1748851088786,3.49545625,2507.2,2506.9,3.17714542]
[1748851089633,3.49545625,2507.2,2506.9,2.39334542]
[1748851089966,3.5367234,2507.2,2506.8,2.39344341]
[1748851090346,4.22844878,2507.2,2506.7,0.7719]
[1748851090569,4.22844878,2507.2,2506.8,2.39344056]
[1748851091484,4.22844878,2507.2,2506.7,3.16547688]
[1748851092135,4.22844878,2507.2,2506.9,2.39337969]
[1748851092786,3.49545625,2507.0,2506.7,2.39350818]
[1748851092950,3.49545625,2507.0,2506.5,0.808]
[1748851093289,3.49545625,2506.8,2506.6,2.39361281]
[1748851095066,3.49545625,2507.0,2506.6,2.39361281]
[1748851095377,4.23351481,2507.0,2506.6,2.39361281]
[1748851097174,4.23351481,2507.0,2506.7,2.39358201]
[1748851098771,8.73299253,2507.2,2506.8,2.39341647]
[1748851099075,12.22844878,2507.2,2506.8,2.39341647]
[1748851099576,12.22844878,2507.2,2506.7,3.2220562]
[1748851099881,12.22844878,2507.2,2506.8,2.39348376]
[1748851100085,1.94829631,2507.1,2506.8,2.39348376]
[1748851100248,1.94829631,2507.1,2506.7,0.8285]
[1748851100249,3.49545625,2507.0,2506.7,2.39354816]
[1748851100985,3.49545625,2506.8,2506.5,0.7674]
[1748851101145,3.49545625,2506.8,2506.3,3.16156663]
[1748851101341,0.8121,2506.9,2506.6,2.39360956]
[1748851102309,3.49545625,2507.0,2506.3,0.7676]
[1748851102466,3.49545625,2507.0,2506.7,2.39353388]
[1748851102794,13.04534878,2507.2,2506.8,2.39347644]
[1748851104802,13.04534878,2507.2,2506.9,2.39339191]
[1748851105000,12.22844878,2507.2,2506.9,2.39339191]
[1748851105462,12.22844878,2507.2,2506.8,2.39344712]
[1748851106489,12.22844878,2507.2,2506.7,3.21654381]
[1748851106490,14.62161782,2507.2,2506.7,3.21654381]
[1748851106700,3.49545625,2507.0,2506.7,3.21654381]
[1748851106897,3.49545625,2507.0,2506.7,2.39354381]
[1748851107200,3.49545625,2506.8,2506.4,2.39387168]
[1748851107704,3.49545625,2506.8,2506.6,2.39367867]
[1748851109213,11.49545625,2507.0,2506.6,2.39363418]
[1748851109500,13.2492844,2507.0,2506.6,2.39363418]
[1748851110191,11.49545625,2507.0,2506.7,3.18224917]
[1748851112307,11.49545625,2507.0,2506.6,2.39364987]
[1748851114695,13.88875643,2507.0,2506.5,3.19224344]
[1748851115004,11.49545625,2507.0,2506.5,3.19224368]
[1748851115204,15.80860082,2507.0,2506.4,2.39382293]
[1748851115703,15.80860082,2507.0,2506.5,2.39376871]
[1748851115873,13.41529505,2507.0,2506.5,2.39376871]
[1748851116403,13.41529505,2507.0,2506.6,2.3936778]
[1748851118217,13.41529505,2507.0,2506.5,2.39372904]
[1748851118580,15.80859674,2507.0,2506.5,2.39372904]
[1748851119614,13.41529505,2507.0,2506.4,2.39387098]
[1748851119907,13.41529505,2507.0,2506.5,2.39372514]
[1748851120078,15.80859724,2507.0,2506.5,2.39372514]
[1748851120276,13.41529505,2507.0,2506.5,2.39372514]
[1748851120712,15.8086095,2507.0,2506.5,2.39372514]
[1748851120917,13.41529505,2507.0,2506.5,2.39372514]
[1748851121213,0.8145,2507.3,2506.5,3.20025453]
[1748851121418,0.8145,2507.3,2506.6,4.072]
[1748851121715,0.8145,2507.3,2507.0,2.39328622]
[1748851122084,12.30595625,2507.5,2507.0,2.39328622]
[1748851122289,8.0,2507.4,2507.0,2.39328622]
[1748851123025,0.8105,2507.5,2507.2,2.39301376]
[1748851123198,0.8105,2507.5,2507.2,2.39305292]
[1748851123592,0.8105,2507.5,2507.1,2.39315508]
[1748851123896,0.8105,2507.5,2507.2,2.39310394]
[1748851125084,0.8105,2507.5,2507.1,2.39316245]
[1748851125315,6.18302055,2507.5,2507.1,2.39316245]
[1748851126121,3.49545625,2507.3,2507.0,2.39327857]
[1748851126515,3.49545625,2507.3,2507.0,2.3932533]
[1748851127028,3.49545625,2507.3,2507.1,2.39319019]
[1748851127224,6.18302055,2507.5,2507.2,2.39310784]
[1748851127835,6.18302055,2507.5,2507.1,2.39316323]
[1748851129132,6.18302055,2507.5,2507.2,2.39310779]
[1748851129334,6.18302055,2507.5,2507.1,2.39313538]
[1748851129627,4.30595625,2507.5,2507.1,2.39313538]
[1748851130401,3.49545625,2507.3,2507.0,2.39326903]
[1748851131110,3.49545625,2507.3,2507.1,2.39319969]
[1748851133524,3.49545625,2507.5,2506.8,3.20577163]
[1748851133726,8.0,2507.6,2507.3,2.39294924]
[1748851134044,8.0,2507.6,2507.2,2.39306026]
[1748851134425,8.0,2507.6,2507.3,2.39300306]
[1748851137443,0.39917859,2507.8,2507.4,3.15681282]
[1748851137647,11.49545625,2507.9,2507.6,2.39270786]
[1748851137949,12.77243567,2507.9,2507.5,2.39276301]
[1748851138317,4.30495625,2507.7,2507.1,0.8001]
[1748851138522,4.30495625,2507.7,2507.3,2.39293207]
[1748851139147,4.30495625,2507.7,2507.2,2.3930928]
[1748851139148,3.49545625,2507.5,2507.2,2.39304549]
[1748851139364,3.49545625,2507.5,2507.1,7.26325578]
[1748851139561,4.30495625,2507.7,2507.1,7.26325578]
[1748851139762,3.49545625,2507.4,2507.2,2.39310784]
[1748851139956,4.71200846,2507.7,2507.2,2.39310784]
[1748851139957,3.49545625,2507.6,2507.2,2.39310784]
[1748851140157,3.49545625,2507.6,2507.1,2.39319157]
[1748851140357,3.49545625,2507.6,2507.2,2.39310784]
[1748851141061,4.35632243,2507.6,2507.2,2.39310784]
[1748851142129,4.35632243,2507.6,2507.0,2.39327195]
[1748851142550,4.35632243,2507.6,2507.2,2.39305098]
[1748851143050,4.35632243,2507.6,2506.9,4.891]
[1748851143254,6.79034718,2507.6,2507.1,2.39315614]
[1748851143557,6.79034718,2507.6,2506.9,7.28432435]
[1748851143558,4.35632243,2507.6,2507.2,2.39310102]
[1748851143759,3.49545625,2507.4,2507.1,2.39318481]
[1748851144058,3.49545625,2507.6,2507.2,2.39310255]
[1748851144965,8.0,2507.3,2506.7,5.5404]
[1748851145165,4.27435625,2507.4,2506.7,5.5404]
[1748851145374,8.8003,2507.6,2507.2,2.39305092]
[1748851145669,14.1187513,2507.6,2507.2,2.39305092]
[1748851145845,8.8003,2507.6,2507.2,2.39309533]
[1748851146047,8.0,2507.6,2507.3,2.3929601]
[1748851146446,1.50987295,2507.7,2507.4,2.39290745]
[1748851146447,8.0,2507.7,2507.4,2.39290745]
[1748851147142,8.0,2507.7,2507.3,2.39296839]
[1748851147333,3.49545625,2507.6,2507.3,2.39296839]
[1748851147667,4.69695241,2507.8,2507.4,2.39291447]
[1748851147974,5.511495,2507.8,2507.4,2.39285098]
[1748851149041,5.511495,2507.8,2507.3,2.39297252]
[1748851149556,5.511495,2507.8,2507.4,2.39290144]
[1748851150648,5.511495,2507.8,2507.3,2.39295344]
[1748851150848,5.511495,2507.8,2507.4,2.39291365]
[1748851153255,5.511495,2507.8,2507.1,3.18978284]
[1748851153455,3.49545625,2507.6,2507.3,2.39294662]
[1748851153868,3.49545625,2507.6,2507.2,2.39306405]
[1748851154355,3.49545625,2507.6,2507.4,2.39291509]
[1748851155350,12.69695241,2507.8,2507.2,2.39310479]
[1748851155554,1.20149616,2507.8,2507.5,2.39277005]
[1748851155752,4.69695241,2507.8,2507.5,2.39274371]
[1748851156463,0.40119616,2507.8,2507.6,2.39271678]
[1748851156669,8.0,2507.9,2507.5,2.39277002]
[1748851157469,8.0,2507.9,2507.3,2.3930124]
[1748851157470,3.49545625,2507.6,2507.3,2.3930124]
[1748851157703,3.49545625,2507.6,2507.2,2.39307541]
[1748851157884,4.30095625,2507.4,2506.8,0.7576]
[1748851158204,4.30095625,2507.4,2507.0,2.39328783]
[1748851158715,4.30095625,2507.4,2506.9,2.39337018]
[1748851158858,3.49545625,2507.2,2506.9,2.39337018]
[1748851159058,4.30095625,2507.4,2507.0,2.39325503]
[1748851159261,4.69834235,2507.4,2507.0,2.39325503]
[1748851159467,4.69834235,2507.4,2507.1,2.3931682]
[1748851160181,4.69834235,2507.4,2507.0,2.39324974]
[1748851160612,1.2028861,2507.4,2506.9,0.7924]
[1748851160909,0.7995,2507.6,2507.3,2.3930124]
[1748851161060,0.7995,2507.6,2507.2,2.39307899]
[1748851161061,1.21334133,2507.6,2507.2,2.39307899]
[1748851161264,0.7995,2507.6,2507.2,2.39307899]
[1748851164195,1.20222416,2507.6,2507.2,2.39307899]
[1748851164507,1.20222416,2507.6,2507.1,2.39316538]
[1748851165005,1.20222416,2507.6,2507.2,2.39310261]
[1748851165314,3.49545625,2507.5,2506.9,0.7924]
[1748851165522,3.49545625,2507.5,2507.1,2.39318792]
[1748851165816,3.49545625,2507.5,2507.2,2.39310134]
[1748851167124,3.49545625,2507.5,2507.1,2.39315384]
[1748851167325,3.49545625,2507.5,2507.2,2.39306542]
[1748851170190,3.49545625,2507.5,2507.1,2.39315787]
[1748851171021,0.8182,2507.4,2507.0,2.39328485]
[1748851171343,0.8182,2507.4,2507.1,2.39316298]
[1748851172226,0.8182,2507.4,2507.0,2.39325713]
[1748851172603,0.8182,2507.4,2506.7,0.7943]
[1748851173599,0.8182,2507.4,2507.1,2.39319479]
[1748851174933,0.8182,2507.4,2507.2,2.39310757]
[1748851175526,1.72984658,2507.6,2507.3,2.39292645]
[1748851175527,1.20432416,2507.6,2507.3,2.39292645]
[1748851175734,9.20432416,2507.6,2507.3,2.39292645]
[1748851176831,9.20432416,2507.6,2507.2,2.39306041]
[1748851178348,9.20432416,2507.6,2507.1,2.39316811]
[1748851178651,11.59711036,2507.6,2507.1,2.39316811]
[1748851178812,13.75242119,2507.6,2507.1,2.39316811]
[1748851180258,11.35963499,2507.6,2507.2,2.3931013]
[1748851180455,9.20432416,2507.6,2507.2,2.3931013]
[1748851180822,0.7938,2507.5,2507.2,2.3931013]
[1748851181025,0.7938,2507.3,2507.0,2.39329073]
[1748851181223,0.7938,2507.3,2506.9,2.39332752]
[1748851183361,0.7938,2507.3,2507.2,2.39310784]
[1748851183561,0.7666,2507.8,2507.4,2.39285991]
[1748851183770,0.7666,2507.8,2507.0,4.8483]
[1748851183771,3.49545625,2507.7,2507.0,4.8483]
[1748851184062,3.49545625,2507.7,2507.2,2.39301922]
[1748851185027,3.49545625,2507.7,2507.3,2.39300476]
[1748851185226,3.49545625,2507.7,2507.2,2.39306801]
[1748851186558,3.49545625,2507.7,2507.3,2.39293094]
[1748851187262,3.88737621,2507.7,2507.3,2.39293094]
[1748851189226,3.88737621,2507.7,2507.2,2.39305983]
[1748851189828,3.88737621,2507.7,2507.3,2.39296252]
[1748851191140,3.88737621,2507.7,2507.4,2.39288887]
[1748851191341,0.39191996,2507.7,2507.5,2.39281866]
[1748851191645,8.7666,2507.8,2507.5,2.39281866]
[1748851192571,9.16733208,2507.8,2507.5,2.39281866]
[1748851192935,9.16733208,2507.8,2507.6,2.39271055]
[1748851193137,9.16733208,2507.8,2507.5,2.39278747]
[1748851193561,1.8329,2508.0,2507.6,2.3926782]
[1748851193773,2.60495809,2508.0,2507.5,2.39279291]
[1748851194432,2.60495809,2508.0,2507.6,2.39266707]
[1748851196881,3.49545625,2507.9,2507.5,2.39278473]
[1748851197655,3.49545625,2507.9,2507.4,2.3928933]
[1748851198041,3.49545625,2507.9,2507.5,2.39275964]
[1748851200396,4.38451715,2507.9,2507.4,2.39283529]
[1748851200557,5.88790421,2507.9,2507.4,2.39283529]
[1748851200888,3.49545625,2507.5,2507.2,2.39304789]
[1748851201042,3.49545625,2507.5,2507.1,6.46016209]
[1748851201245,0.7744,2507.4,2507.2,2.3931029]
[1748851201445,0.7744,2507.4,2507.1,2.39315181]
[1748851202268,0.7744,2507.4,2507.2,2.39308963]
[1748851202560,0.7744,2507.4,2507.1,2.39314863]
[1748851203961,0.7744,2507.4,2507.0,2.39324972]
[1748851204163,0.7744,2507.4,2507.0,2.39329876]
[1748851204479,0.7744,2507.4,2507.1,2.39317697]
[1748851204843,0.7744,2507.4,2507.0,2.39326059]
[1748851205045,3.49545625,2507.3,2506.7,0.7546]
[1748851205286,3.49545625,2507.3,2506.8,2.39348779]
[1748851205493,3.5367234,2507.3,2506.8,2.39346504]
[1748851205987,0.7744,2507.4,2506.9,2.39336697]
[1748851206357,0.7744,2507.4,2507.0,2.39327571]
[1748851206563,8.7928,2507.6,2507.2,2.39306752]
[1748851206761,1.22882563,2507.5,2507.0,2.39329876]
[1748851206996,8.7928,2507.6,2507.1,2.39315414]
[1748851207345,8.7928,2507.6,2507.0,2.39329876]
[1748851207346,8.7928,2507.6,2507.2,2.39309852]
[1748851207796,8.7928,2507.6,2507.1,2.39315879]
[1748851208471,8.7928,2507.6,2507.2,2.39308177]
[1748851208843,8.7928,2507.6,2507.0,2.39329876]
[1748851209047,0.8243,2507.4,2506.6,3.15086674]
[1748851209257,0.8243,2507.4,2507.1,2.39313233]
[1748851209843,0.8243,2507.4,2506.9,0.7572]
[1748851210046,3.21693601,2507.7,2507.2,2.39306047]
[1748851210242,0.8243,2507.7,2507.2,2.39306047]
[1748851210446,0.8243,2507.7,2507.3,2.39296147]
[1748851210746,8.0,2507.6,2507.2,2.39308476]
[1748851211180,10.39273328,2507.6,2507.1,2.39315689]
[1748851211378,10.39273328,2507.6,2506.9,3.15055967]
[1748851211680,4.26965625,2507.5,2507.0,2.39329876]
[1748851212257,6.66248225,2507.5,2507.0,2.39329876]
[1748851212460,4.31345625,2507.3,2507.0,2.39322701]
[1748851212682,4.31345625,2507.3,2507.1,2.39312132]
[1748851212683,0.818,2507.3,2507.1,2.39312132]
[1748851212854,0.818,2507.3,2506.7,0.7769]
[1748851213055,0.818,2507.3,2507.0,2.39324425]
[1748851215596,0.818,2507.3,2506.8,2.39341112]
[1748851215898,0.818,2507.3,2507.0,2.39327192]
[1748851216093,0.818,2507.3,2506.8,2.3934897]
[1748851216265,4.31345625,2507.3,2506.5,0.8217]
[1748851216464,4.31345625,2507.3,2506.9,2.39338472]
[1748851216685,4.9882209,2507.3,2506.9,2.39338472]
[1748851216875,4.31345625,2507.3,2506.9,2.39338472]
[1748851220711,4.31345625,2507.3,2506.8,2.39345349]
[1748851221311,4.31345625,2507.3,2506.9,2.39339337]
[1748851221624,4.31345625,2507.3,2506.8,2.39341403]
[1748851222117,4.31345625,2507.3,2506.9,2.39338867]
[1748851222272,5.22337839,2507.3,2506.9,2.39338867]
[1748851223309,0.818,2507.3,2506.6,7.56145625]
[1748851223512,8.7834,2507.9,2506.9,0.7727]
[1748851223810,15.24184452,2507.9,2507.4,2.39285854]
[1748851223984,3.49545625,2507.8,2507.4,2.39285854]
[1748851224587,8.7834,2507.9,2507.6,2.39265814]
[1748851224818,0.7834,2507.9,2507.6,2.39265814]
[1748851225017,0.7834,2507.9,2507.7,2.39262158]
[1748851225205,3.77420016,2508.3,2507.9,2.39243988]
[1748851225523,8.72696564,2508.2,2507.9,2.39243988]
[1748851225681,12.22242189,2508.2,2507.8,2.39250367]
[1748851225876,12.22242189,2508.2,2507.7,2.39260116]
[1748851226118,12.22242189,2508.2,2507.8,2.39248319]
[1748851226887,3.49545625,2508.0,2507.6,2.392634]
[1748851227086,3.49545625,2508.0,2507.4,4.066]
[1748851227314,11.49545625,2508.2,2507.8,2.39247799]
[1748851227514,13.26162331,2508.2,2507.8,2.39247799]
[1748851228414,13.26162331,2508.2,2507.7,2.39259927]
[1748851228932,15.65385401,2508.2,2507.6,2.39271497]
[1748851229089,2.39228762,2508.1,2507.6,2.39271497]
[1748851229387,3.49545625,2508.0,2507.6,2.39271497]
[1748851230424,3.49545625,2508.0,2507.7,2.39261306]
[1748851230620,3.49545625,2508.0,2507.6,2.39270432]
[1748851231323,3.49545625,2508.0,2507.5,4.066]
[1748851231324,3.49545625,2508.0,2507.7,2.39262983]
[1748851232331,3.49545625,2508.0,2507.5,6.45882005]
[1748851232618,3.49545625,2508.0,2507.6,2.39272611]
[1748851233417,3.49545625,2508.0,2507.7,2.39261893]
[1748851233626,3.49545625,2508.0,2507.5,2.39278179]
[1748851233829,5.06083477,2508.0,2507.5,2.39282153]
[1748851234124,5.06083477,2508.0,2507.6,2.39267881]
[1748851234526,5.06083477,2508.0,2507.5,2.39281192]
[1748851234733,4.27455625,2508.0,2507.7,2.39262472]
[1748851235223,4.27455625,2508.0,2507.4,4.065]
[1748851235415,4.27455625,2508.0,2507.7,2.39254522]
[1748851236431,4.27455625,2508.0,2507.4,4.065]
[1748851236595,4.27455625,2508.0,2507.7,2.39258507]
[1748851236999,0.7791,2508.0,2507.8,2.39252765]
[1748851237320,14.05842331,2508.2,2507.8,2.39252765]
[1748851237516,10.39015028,2508.1,2507.9,2.39243936]
[1748851237734,0.7968,2508.2,2507.6,3.15008682]
[1748851237935,2.97930016,2508.3,2507.6,0.7574]
[1748851237936,6.51602356,2508.3,2507.6,0.7574]
[1748851238098,4.29225625,2508.1,2507.7,2.39256514]
[1748851238497,4.29225625,2508.1,2507.8,2.3925274]
[1748851238735,5.25862239,2508.1,2507.5,2.39273409]
[1748851238913,5.25862239,2508.1,2507.6,2.3926984]
[1748851239099,5.25862239,2508.1,2507.7,2.39263069]
[1748851239829,5.25862239,2508.1,2507.8,2.3924957]
[1748851240038,5.25862239,2508.1,2507.7,2.39256668]
[1748851240913,5.25862239,2508.1,2507.8,2.39252757]
[1748851241611,5.25862239,2508.1,2507.9,2.39243972]
[1748851241821,0.7968,2508.1,2507.9,2.39243972]
[1748851242334,0.7968,2508.1,2507.8,2.39249987]
[1748851242939,0.7968,2508.1,2507.7,2.39258246]
[1748851243240,4.29225625,2508.1,2507.8,2.39252707]
[1748851243732,4.29225625,2508.1,2507.9,2.39243938]
[1748851244134,7.30495641,2508.3,2507.9,2.39243938]
[1748851244316,8.68115258,2508.3,2507.9,2.39243938]
[1748851244516,8.68115258,2508.3,2507.8,2.39248859]
[1748851245541,8.68115258,2508.3,2507.9,2.39243412]
[1748851245746,11.07325263,2508.3,2507.8,2.39250755]
[1748851246038,8.68115258,2508.3,2507.8,2.39250755]
[1748851246238,8.68115258,2508.3,2507.9,2.39243688]
[1748851246450,1.5534428,2508.2,2507.9,2.39243688]
[1748851248041,3.80950016,2508.3,2507.9,2.39243688]
[1748851249341,3.80950016,2508.3,2507.8,2.39249355]
[1748851249543,3.49545625,2508.2,2507.8,2.39249355]
[1748851250357,3.80950016,2508.3,2507.9,2.39243209]
[1748851251073,3.80950016,2508.3,2508.0,2.39234308]
[1748851251928,2.97930016,2508.3,2508.2,2.39215373]
[1748851252137,0.7505,2508.6,2508.3,2.39199172]
[1748851252381,0.7505,2508.6,2508.4,2.39194456]
[1748851252545,0.2044102,2508.8,2508.3,0.7602]
[1748851252747,0.02,2508.9,2508.8,2.39158163]
[1748851253778,0.02,2508.9,2508.6,2.39170187]
[1748851253978,0.72,2508.9,2508.6,2.39170187]
[1748851254131,0.02,2508.9,2508.6,2.39170187]
[1748851254480,0.02,2508.9,2508.3,0.8067]
[1748851254633,2.41150268,2508.9,2508.3,3.19872584]
[1748851254830,4.4276943,2508.9,2508.4,2.39190608]
[1748851255230,5.88719865,2508.7,2508.1,2.39216837]
[1748851255668,2.39177294,2508.6,2508.1,2.39216837]
[1748851255884,3.49545625,2508.3,2507.6,0.8023]
[1748851256178,3.49545625,2508.3,2507.3,0.6348198]
[1748851256179,0.8154,2508.0,2507.3,0.8153]
[1748851256489,0.8154,2508.0,2507.7,2.39256664]
[1748851257256,0.8154,2508.0,2507.8,2.39250737]
[1748851257447,0.8154,2508.0,2507.7,2.39258931]
[1748851258226,0.8154,2508.0,2507.3,0.8153]
[1748851258391,0.8154,2508.0,2507.7,2.39257206]
[1748851258888,0.8154,2508.0,2507.4,2.3929012]
[1748851259058,0.7,2507.8,2507.5,0.38114797]
[1748851259387,0.7,2507.8,2507.6,2.39266824]
[1748851260260,0.7,2507.8,2507.7,2.39263069]
[1748851260790,0.7,2507.8,2507.4,4.063]
[1748851260941,0.7,2507.8,2507.5,2.77387963]
[1748851261289,0.7698,2507.4,2506.4,0.47643909]
[1748851261440,3.49545625,2506.9,2506.1,0.49643909]
[1748851261639,0.04126715,2506.9,2506.2,0.7582]
[1748851261853,0.7698,2507.0,2506.2,0.7582]
[1748851261854,0.7698,2507.0,2506.6,2.39362432]
[1748851262057,0.785,2507.5,2507.1,2.39319051]
[1748851262272,8.0,2507.4,2506.9,2.39332841]
[1748851262554,8.0,2507.4,2507.0,2.39327432]
[1748851262755,0.785,2507.5,2507.3,2.39294209]
[1748851262954,0.785,2507.5,2507.1,2.39314278]
[1748851263156,0.785,2507.5,2507.0,3.18787174]
[1748851263372,0.7837,2507.7,2507.1,2.3932033]
[1748851263613,0.30174507,2507.9,2507.5,2.39274189]
[1748851263760,0.99906038,2507.9,2507.5,2.39274189]
[1748851263960,0.30174507,2507.9,2507.5,2.39274189]
[1748851264163,0.7,2507.7,2507.5,2.39274189]
[1748851264599,0.7,2507.7,2507.6,2.39272611]
[1748851266073,0.8023,2508.3,2508.1,2.39215876]
[1748851266275,4.29775625,2508.7,2508.2,2.39212216]
[1748851266476,1.86918867,2508.7,2508.1,0.831]
[1748851266688,8.0,2508.8,2508.4,2.39191474]
[1748851266876,7.08445268,2508.9,2508.4,2.39191474]
[1748851267171,7.08445268,2508.9,2508.5,2.39183369]
[1748851267172,8.0,2508.8,2508.5,2.39183369]
[1748851267391,8.0,2508.8,2508.4,2.39192625]
[1748851268469,8.0,2508.8,2508.2,2.39213788]
[1748851268976,8.0,2508.8,2508.3,2.39205836]
[1748851269591,0.7,2508.6,2508.3,2.39205836]
[1748851269964,3.09177416,2508.6,2508.0,2.3923346]
[1748851270169,0.8182,2508.5,2507.8,4.846]
[1748851270369,2.39199677,2508.4,2507.8,7.23844451]
[1748851270981,2.391963,2508.4,2507.8,3.17244451]
[1748851271175,11.21010327,2508.5,2507.9,2.39243503]
[1748851271370,1.91811842,2508.4,2507.9,2.39243503]
[1748851271565,4.31009326,2508.4,2507.9,2.39243503]
[1748851271914,17.66314976,2508.3,2507.4,0.7934]
[1748851272205,2.3922782,2508.1,2507.6,2.39271268]
[1748851272363,9.66344152,2508.0,2507.2,0.7971]
[1748851272568,10.71233567,2508.0,2507.4,2.39290185]
[1748851272767,2.39263264,2507.7,2507.1,2.39317049]
[1748851273176,2.39253528,2507.8,2507.2,2.39308315]
[1748851273381,2.39253528,2507.8,2507.0,4.071]
[1748851273583,11.21798264,2507.9,2507.1,2.39317514]
[1748851273770,0.8255,2507.9,2507.7,2.39256671]
[1748851274069,0.8255,2507.9,2507.4,2.39288615]
[1748851274513,0.8255,2507.9,2507.5,2.3928065]
[1748851276107,0.8255,2507.9,2507.4,2.39288559]
[1748851276289,0.8255,2507.9,2507.5,2.39280832]
[1748851276497,3.0816935,2507.9,2507.5,2.39280832]
[1748851278210,5.47414309,2507.9,2507.2,2.39308861]
[1748851278415,3.0816935,2507.9,2507.4,2.39284674]
[1748851278721,5.47413746,2507.9,2507.4,2.3928341]
[1748851279020,5.47416399,2507.9,2507.3,2.39296828]
[1748851279720,3.21521235,2507.6,2507.0,2.39324653]
[1748851279898,2.39307108,2507.3,2506.7,2.39352742]
[1748851280095,0.8224,2507.2,2506.7,2.39352742]
[1748851280423,0.8224,2507.2,2506.6,2.39365584]
[1748851280582,0.8224,2507.2,2506.5,3.15315707]
[1748851280583,3.21550797,2507.2,2506.5,3.15315707]
[1748851280784,2.18324451,2507.2,2506.5,3.1531455]
[1748851280998,2.18324451,2507.2,2506.7,2.39353635]
[1748851281198,2.18324451,2507.2,2506.8,2.39348656]
[1748851281498,4.5763599,2507.2,2506.6,2.39368068]
[1748851281709,2.18324451,2507.2,2506.7,2.39357244]
[1748851283189,4.57636041,2507.2,2506.6,2.39365065]
[1748851283607,2.18324451,2507.2,2506.7,2.39352953]